[Event "Polish Youth Ekstraliga 2022"]
[Site "Lublin"]
[Date "2022.07.02"]
[Round "8.4"]
[White "Kaszuba, Michal"]
[Black "Ochedzan, Filip"]
[Result "0-1"]
[ECO "B86"]
[WhiteElo "1307"]
[BlackElo "1873"]
[Annotator "NA RC"]
[PlyCount "133"]
[EventDate "2022.06.24"]
[EventType "team-tourn"]
[EventCountry "POL"]
[SourceTitle "playchess.com"]
[Source "ChessBase"]
[SourceQuality "1"]
[TimeControl "40/5400+30:1800+30"]

1. e4 {[%emt 0:00:07]} c5 {[%emt 0:01:08]} 2. Nf3 {[%emt 0:00:10]} d6 {[%emt 0:00:12]} 3. Bc4 {[%emt 0:00:39]} Nf6 {[%emt 0:00:40]} 4. Nc3 {[%emt 0:15:12]} e6 {[%emt 0:03:56]} 5. d4 {[%emt 0:08:47]} cxd4 {[%emt 0:01:21]} 6. Nxd4 {[%emt 0:01:08]} a6 {[%emt 0:00:21]} 7. a4 {[%emt 0:20:15]} Be7 {[%emt 0:01:49]} 8. O-O {[%emt 0:09:08]} O-O {[%emt 0:02:10]} 9. h3 {[%emt 0:09:04]} Nc6 {[%emt 0:06:23]} 10. Be3 {[%emt 0:07:26]} Bd7 {[%emt 0:02:51]} 11. Nxc6 {[%emt 0:05:28]} Bxc6 {[%emt 0:00:54]} 12. Bd3 {[%emt 0:00:28]} Qd7 {[%emt 0:05:43]} 13. Qe2 {[%emt 0:02:58]} Rac8 {[%emt 0:07:07]} 14. f4 {[%emt 0:03:26]} e5 {[%emt 0:02:06]} 15. f5 {[%emt 0:01:04]} d5 {[%emt 0:08:17]} 16. exd5 {[%emt 0:03:12]} Bxd5 {[%emt 0:08:01]} 17. Nxd5 {[%emt 0:00:33]} Qxd5 {[%emt 0:00:11]} 18. c4 {[%emt 0:00:41]} Qc6 {[%emt 0:01:00]} 19. b3 {[%emt 0:01:11]} Nd7 {[%emt 0:04:10]} 20. Bf2 {[%emt 0:01:31]} Bc5 {[%emt 0:11:05]} 21. Bxc5 {[%emt 0:03:07]} Qxc5+ {[%emt 0:00:56]} 22. Qf2 {[%emt 0:01:18]} Qxf2+ {[%emt 0:04:12]} 23. Kxf2 {[%emt 0:00:40]} Nc5 {[%emt 0:00:43]} 24. Bc2 {[%emt 0:00:05]} a5 {[%emt 0:03:47]} 25. Rad1 {[%emt 0:00:33]} Rfd8 {[%emt 0:00:53]} 26. Ke3 {[%emt 0:00:27]} f6 {[%emt 0:03:16]} 27. g4 {[%emt 0:01:38]} Kf7 {[%emt 0:02:55]} 28. Be4 {[%emt 0:03:04]} Nxe4 {[%emt 0:03:41]} 29. Kxe4 {[%emt 0:00:10]} Ke7 {[%emt 0:00:21]} 30. Rfe1 {[%emt 0:01:07]} Rxd1 {[%emt 0:06:37]} 31. Rxd1 {[%emt 0:00:06]} Rc6 {[%emt 0:02:44]} 32. Rd3 {[%emt 0:00:41]} Rd6 {[%emt 0:02:01]} 33. Rc3 {[%emt 0:00:48]} Rd4+ {[%emt 0:00:53]} 34. Ke3 {[%emt 0:00:44]} Kd6 {[%emt 0:00:24]} 35. Rc2 {[%emt 0:00:30]} Kc5 {[%emt 0:00:26]} 36. Rc1 {[%emt 0:00:28]} b6 {[%emt 0:01:37]} 37. Rb1 {[%emt 0:00:34]} Kb4 {[%emt 0:00:17]} 38. Rc1 {[%emt 0:00:22]} Rd7 {[%emt 0:01:41]} 39. Rb1 {[%emt 0:00:35]} Kc3 {[%emt 0:01:15]} 40. Rc1+ {[%emt 0:00:00]} Kb2 {[%emt 0:00:00]} 41. Rg1 {[%emt 0:20:05]} Rd6 {[%emt 0:04:42]} 42. g5 {[%emt 0:04:37]} Kxb3 {[%emt 0:00:45]} 43. gxf6 {[%emt 0:00:19]} gxf6 {[%emt 0:00:06]} 44. Rg7 {[%emt 0:00:43]} Kxa4 {[%emt 0:00:32]} 45. Re7 {[%emt 0:01:23]} Kb4 {[%emt 0:00:55]} 46. Rxh7 {[%emt 0:00:18]} Kxc4 {[%emt 0:00:23]} 47. h4 {[%emt 0:00:35]} a4 {[%emt 0:01:38]} 48. h5 {[%emt 0:02:41]} a3 {[%emt 0:00:33]} 49. h6 {[%emt 0:00:16]} a2 {[%emt 0:00:41]} 50. Ra7 {[%emt 0:00:08]} Kb3 {[%emt 0:00:25]} 51. h7 {[%emt 0:00:50]} Rd8 {[%emt 0:00:15]} 52. Kf3 {[%emt 0:00:22]} Kb2 {[%emt 0:00:22]} 53. Kg4 {[%emt 0:00:12]} Rh8 {[%emt 0:01:03]} 54. Kh5 {[%emt 0:00:12]} a1=Q {[%emt 0:01:19]} 55. Rxa1 {[%emt 0:00:08]} Kxa1 {[%emt 0:00:07]} 56. Kg6 {[%emt 0:00:02]} Rxh7 {[%emt 0:00:23]} 57. Kxh7 {[%emt 0:00:04]} e4 {[%emt 0:00:08]} 58. Kg6 {[%emt 0:00:08]} e3 {[%emt 0:00:10]} 59. Kxf6 {[%emt 0:00:05]} e2 {[%emt 0:00:17]} 60. Kg7 {[%emt 0:00:27]} e1=Q {[%emt 0:00:52]} 61. f6 {[%emt 0:00:12]} Qf1 {[%emt 0:00:13]} 62. f7 {[%emt 0:00:09]} Qxf7+ {[%emt 0:00:27]} 63. Kxf7 {[%emt 0:00:03]} b5 {[%emt 0:00:12]} 64. Ke6 {[%emt 0:00:06]} b4 {[%emt 0:00:07]} 65. Kd5 {[%emt 0:00:05]} b3 {[%emt 0:00:11]} 66. Kc4 {[%emt 0:00:03]} b2 {[%emt 0:00:13]} 67. Kd4 0-1

[Event "Polish Youth Ekstraliga 2022"]
[Site "Lublin"]
[Date "2022.07.02"]
[Round "8.5"]
[White "Lochina, Justyna"]
[Black "Goraj, Barbara"]
[Result "0-1"]
[ECO "B66"]
[WhiteElo "1672"]
[BlackElo "2035"]
[Annotator "NA RC"]
[PlyCount "76"]
[EventDate "2022.06.24"]
[EventType "team-tourn"]
[EventCountry "POL"]
[SourceTitle "playchess.com"]
[Source "ChessBase"]
[SourceQuality "1"]
[TimeControl "40/5400+30:1800+30"]

1. e4 {[%emt 0:00:02]} c5 {[%emt 0:00:07]} 2. Nf3 {[%emt 0:00:33]} Nc6 {[%emt 0:00:10]} 3. d4 {[%emt 0:00:22]} cxd4 {[%emt 0:00:08]} 4. Nxd4 {[%emt 0:00:07]} Nf6 {[%emt 0:00:09]} 5. Nc3 {[%emt 0:00:12]} d6 {[%emt 0:00:08]} 6. Bg5 {[%emt 0:01:11]} e6 {[%emt 0:00:26]} 7. Qd2 {[%emt 0:01:21]} a6 {[%emt 0:00:11]} 8. Nxc6 {[%emt 0:04:34]} bxc6 {[%emt 0:00:16]} 9. O-O-O {[%emt 0:01:26]} Be7 {[%emt 0:06:44]} 10. Bxf6 {[%emt 0:03:44]} gxf6 {[%emt 0:00:42]} 11. Bc4 {[%emt 0:01:49]} h5 {[%emt 0:05:28]} 12. f4 {[%emt 0:06:39]} Rb8 {[%emt 0:02:49]} 13. Rhe1 {[%emt 0:05:34]} Qb6 {[%emt 0:05:10]} 14. Bb3 {[%emt 0:01:44]} a5 $16 {[%emt 0:01:33]} 15. Re3 {[%emt 0:07:03]} Bd7 {[%emt 0:04:30]} 16. Na4 {[%emt 0:07:04]} Qa7 {[%emt 0:07:20]} 17. c4 {[%emt 0:12:46]} c5 {[%emt 0:05:58]} 18. Qc2 {[%emt 0:03:58]} Ra8 {[%emt 0:13:44]} 19. Kb1 {[%emt 0:05:37]} Bc6 {[%emt 0:01:09]} 20. a3 {[%emt 0:05:38]} h4 {[%emt 0:05:03]} 21. Rde1 {[%emt 0:10:54]} Kd7 {[%emt 0:07:28]} 22. Rh3 {[%emt 0:03:10]} Rhb8 {[%emt 0:10:25]} 23. Nc3 {[%emt 0:04:00]} a4 {[%emt 0:01:07]} 24. Ba2 {[%emt 0:00:15]} Rb7 {[%emt 0:01:49]} 25. Rxh4 {[%emt 0:02:28]} Rab8 {[%emt 0:00:28]} 26. Re2 {[%emt 0:09:16]} f5 {[%emt 0:02:41]} 27. Rh7 {[%emt 0:01:06]} Bxe4 {[%emt 0:01:49]} 28. Nxe4 {[%emt 0:00:24]} Rxb2+ {[%emt 0:00:50]} 29. Qxb2 {[%emt 0:00:09]} fxe4 {[%emt 0:02:31]} 30. Rxf7 {[%emt 0:01:11]} Rxb2+ {[%emt 0:01:46]} 31. Rxb2 {[%emt 0:00:08]} e3 {[%emt 0:01:16]} 32. Rg7 {[%emt 0:01:08]} Qa5 {[%emt 0:01:50]} 33. Re2 {[%emt 0:00:53]} Qc3 {[%emt 0:00:22]} 34. Rg3 {[%emt 0:00:28]} Qd3+ {[%emt 0:02:12]} 35. Rc2 {[%emt 0:00:24]} Bf6 {[%emt 0:00:12]} 36. h4 {[%emt 0:00:37]} Qd1+ {[%emt 0:01:03]} 37. Rc1 {[%emt 0:00:16]} e2 {[%emt 0:00:45]} 38. Re3 {[%emt 0:00:15]} Qd2 {[%emt 0:00:08]} 0-1

[Event "Polish Youth Ekstraliga 2022"]
[Site "Lublin"]
[Date "2022.07.02"]
[Round "8.6"]
[White "Jaros, Emilia"]
[Black "Smietanska, Wiktoria"]
[Result "0-1"]
[ECO "B17"]
[WhiteElo "1366"]
[BlackElo "1879"]
[Annotator "NA RC"]
[PlyCount "176"]
[EventDate "2022.06.24"]
[EventType "team-tourn"]
[EventCountry "POL"]
[SourceTitle "playchess.com"]
[Source "ChessBase"]
[SourceQuality "1"]
[TimeControl "40/5400+30:1800+30"]

1. e4 {[%emt 0:00:06]} c6 {[%emt 0:00:07]} 2. d4 {[%emt 0:00:25]} d5 {[%emt 0:00:07]} 3. Nd2 {[%emt 0:00:25]} dxe4 {[%emt 0:00:13]} 4. Nxe4 {[%emt 0:00:30]} Nd7 {[%emt 0:00:33]} 5. Ng5 {[%emt 0:01:24]} Ngf6 {[%emt 0:00:46]} 6. Bd3 {[%emt 0:04:05]} e6 {[%emt 0:00:32]} 7. N1f3 {[%emt 0:01:03]} Bd6 {[%emt 0:02:08]} 8. Qe2 {[%emt 0:01:43]} h6 {[%emt 0:01:59]} 9. Ne4 {[%emt 0:01:45]} Nxe4 {[%emt 0:00:46]} 10. Bxe4 {[%emt 0:00:33]} Nf6 {[%emt 0:01:55]} 11. Bd3 {[%emt 0:01:09]} O-O {[%emt 0:01:38]} 12. Bd2 {[%emt 0:02:13]} b5 {[%emt 0:10:53]} 13. O-O {[%emt 0:08:15]} Bb7 {[%emt 0:03:25]} 14. c3 {[%emt 0:03:34]} Qc7 {[%emt 0:04:36]} 15. h3 {[%emt 0:02:11]} a6 {[%emt 0:02:14]} 16. b4 {[%emt 0:12:01]} Rfe8 {[%emt 0:02:39]} 17. Ne5 {[%emt 0:05:07]} Rad8 {[%emt 0:03:53]} 18. f4 {[%emt 0:05:24]} a5 {[%emt 0:05:39]} 19. a3 {[%emt 0:01:45]} Qb6 {[%emt 0:03:44]} 20. Kh1 {[%emt 0:05:34]} g6 {[%emt 0:09:13]} (20... axb4 $16 21. axb4 Qc7) 21. Ng4 {[%emt 0:10:16]} Nxg4 {[%emt 0:02:21]} 22. Qxg4 {[%emt 0:00:43]} Bf8 {[%emt 0:01:59]} 23. h4 {[%emt 0:04:49]} h5 {[%emt 0:00:47]} 24. Qg3 {[%emt 0:01:17]} Bg7 {[%emt 0:03:35]} 25. Be3 {[%emt 0:03:34]} Qc7 {[%emt 0:01:12]} 26. Be4 {[%emt 0:00:36]} Ra8 {[%emt 0:01:34]} 27. Qf3 {[%emt 0:01:19]} Ra6 {[%emt 0:01:06]} 28. Qe2 {[%emt 0:00:48]} Qe7 {[%emt 0:02:33]} 29. g3 {[%emt 0:01:09]} Rea8 {[%emt 0:01:14]} 30. Qd3 {[%emt 0:02:59]} Qd7 {[%emt 0:02:22]} 31. Rf2 {[%emt 0:00:55]} Bf8 {[%emt 0:02:38]} 32. Bd2 {[%emt 0:02:21]} Rd8 {[%emt 0:04:43]} 33. Kh2 {[%emt 0:00:58]} axb4 {[%emt 0:00:31]} 34. cxb4 {[%emt 0:02:31]} Qxd4 {[%emt 0:01:41]} 35. Qxd4 {[%emt 0:00:32]} Rxd4 {[%emt 0:00:09]} 36. Re2 {[%emt 0:01:26]} Bxb4 {[%emt 0:03:32]} 37. Bxb4 {[%emt 0:00:48]} Rxb4 {[%emt 0:00:11]} 38. axb4 {[%emt 0:00:21]} Rxa1 {[%emt 0:00:06]} 39. Rd2 {[%emt 0:01:12]} Re1 {[%emt 0:02:02]} 40. Bg2 {[%emt 0:00:00]} Ra1 {[%emt 0:00:00]} 41. Rd7 {[%emt 0:03:44]} Ba8 {[%emt 0:01:40]} 42. Rd6 {[%emt 0:00:37]} Ra2 {[%emt 0:01:09]} 43. Kh3 {[%emt 0:01:03]} Kg7 {[%emt 0:01:15]} 44. Rd7 {[%emt 0:01:03]} Ra4 {[%emt 0:00:59]} 45. Rd8 {[%emt 0:00:53]} Kf6 {[%emt 0:00:25]} 46. Rc8 {[%emt 0:01:50]} Ra7 {[%emt 0:01:30]} 47. Kh2 {[%emt 0:03:22]} Ke7 {[%emt 0:01:55]} 48. Kh3 {[%emt 0:01:16]} Kd7 {[%emt 0:04:22]} 49. Rf8 {[%emt 0:00:48]} Kd6 {[%emt 0:01:04]} 50. Rd8+ {[%emt 0:00:35]} Kc7 {[%emt 0:01:39]} 51. Rd3 $2 {[%emt 0:00:59]} (51. Rg8) 51... Ra2 {[%emt 0:00:41]} 52. Rb3 {[%emt 0:00:51]} Bb7 {[%emt 0:00:09]} 53. Bf3 {[%emt 0:00:38]} Bc8 {[%emt 0:00:40]} (53... c5 $142 54. Bxb7 c4) 54. g4 {[%emt 0:01:04]} hxg4+ {[%emt 0:00:53]} 55. Bxg4 {[%emt 0:00:22]} Rc2 {[%emt 0:04:29]} 56. Kg3 {[%emt 0:01:34]} Rc4 {[%emt 0:00:35]} 57. Bf3 {[%emt 0:02:56]} Kb6 {[%emt 0:00:38]} 58. Be2 {[%emt 0:02:24]} Rd4 {[%emt 0:02:25]} 59. Kf3 {[%emt 0:02:56]} Bb7 {[%emt 0:00:25]} 60. Ke3 {[%emt 0:00:54]} Rd8 {[%emt 0:00:41]} 61. h5 {[%emt 0:01:48]} gxh5 {[%emt 0:00:25]} 62. Bxh5 {[%emt 0:00:17]} Rh8 {[%emt 0:00:19]} 63. Bf3 {[%emt 0:00:49]} Rh3 {[%emt 0:00:28]} 64. Kd4 {[%emt 0:00:51]} Kc7 {[%emt 0:01:42]} 65. Ke5 {[%emt 0:02:31]} (65. Kc5 {only move.}) 65... c5 {[%emt 0:02:35]} 66. bxc5 {[%emt 0:01:42]} Rxf3 {[%emt 0:00:49]} 67. Rxb5 {[%emt 0:00:47]} Bd5 {[%emt 0:00:36]} 68. Rb1 {[%emt 0:02:09]} Kc6 $19 {[%emt 0:00:45]} 69. Rc1 {[%emt 0:00:28]} f6+ {[%emt 0:00:58]} 70. Kxf6 {[%emt 0:00:34]} Rxf4+ {[%emt 0:00:09]} 71. Ke5 {[%emt 0:01:46]} Re4+ {[%emt 0:00:14]} 72. Kf6 {[%emt 0:00:23]} Rc4 {[%emt 0:00:14]} 73. Re1 {[%emt 0:01:29]} Kxc5 {[%emt 0:00:27]} 74. Ke5 {[%emt 0:00:40]} Rc2 {[%emt 0:00:24]} 75. Re3 {[%emt 0:00:54]} Kc4 {[%emt 0:00:14]} 76. Re1 {[%emt 0:00:58]} Kd3 {[%emt 0:00:50]} 77. Kd6 {[%emt 0:00:31]} Re2 {[%emt 0:00:36]} 78. Rxe2 {[%emt 0:00:23]} Kxe2 {[%emt 0:00:09]} 79. Ke5 {[%emt 0:00:09]} Ke3 {[%emt 0:00:09]} 80. Kf6 {[%emt 0:00:10]} Kf4 {[%emt 0:00:06]} 81. Kg6 {[%emt 0:00:12]} e5 {[%emt 0:00:10]} 82. Kf6 {[%emt 0:00:11]} e4 {[%emt 0:00:06]} 83. Kg6 {[%emt 0:00:07]} e3 {[%emt 0:00:06]} 84. Kf6 {[%emt 0:00:06]} e2 {[%emt 0:00:06]} 85. Kg6 {[%emt 0:00:06]} e1=Q {[%emt 0:00:09]} 86. Kf6 {[%emt 0:00:09]} Qe6+ {[%emt 0:00:08]} 87. Kg7 {[%emt 0:00:06]} Kg5 {[%emt 0:00:08]} 88. Kh8 {[%emt 0:00:09]} Qg8# {[%emt 0:00:06]} 0-1

[Event "Polish Youth Ekstraliga 2022"]
[Site "Lublin"]
[Date "2022.07.02"]
[Round "8.7"]
[White "Kazmierowski, Tymon"]
[Black "Niedbala, Bartlomiej"]
[Result "0-1"]
[ECO "B08"]
[WhiteElo "2020"]
[BlackElo "2384"]
[Annotator "TA"]
[PlyCount "108"]
[EventDate "2022.06.24"]
[EventType "team-tourn"]
[EventCountry "POL"]
[SourceTitle "playchess.com"]
[Source "ChessBase"]
[SourceQuality "1"]
[TimeControl "40/5400+30:1800+30"]

{[%evp 13,108,-34,-18,-43,-35,-42,-35,-38,-30,-30,-2,-14,-8,-57,-49,-54,-29,-120,-71,-96,0,-4,0,0,0,0,0,-58,-45,-146,-150,-161,-132,-190,-12,-12,-12,-11,-9,-32,-29,-53,-50,-50,-54,-55,-52,-68,-64,-67,-70,-130,-114,-165,-157,-131,-118,-156,-134,-200,-180,-264,-178,-182,-156,-298,-233,-212,0,-231,-206,-208,-235,-314,-241,-376,-372,-375,-337,-450,-431,-480,-481,-145,-478,-471,-456,-639,-617,-958,-941,-935,-918,-2127,-1998,-1895,-882]} 1. e4 {[%emt 0:00:04]} d6 {[%emt 0:01:47]} 2. d4 {[%emt 0:00:10]} Nf6 {[%emt 0:00:11]} 3. Nc3 {[%emt 0:00:13]} g6 {[%emt 0:00:06]} 4. Nf3 {[%emt 0:02:42]} Bg7 {[%emt 0:03:00]} 5. Bc4 {[%emt 0:00:40]} O-O {[%emt 0:02:12]} 6. O-O {[%emt 0:01:19]} Nc6 {[%emt 0:08:01]} 7. h3 {[%emt 0:09:03] [#]} Nxe4 $1 {[%emt 0:10:31]} 8. Nxe4 {[%emt 0:03:01] Strongly threatening d5. B08: Pirc Defence: Classical System.} (8. Bxf7+ Rxf7) 8... d5 {[%emt 0:01:24]} 9. Bxd5 {[%emt 0:00:31]} Qxd5 {[%emt 0:00:10]} 10. Nc3 {[%emt 0:00:03] Black is slightly better.} Qa5 {[%emt 0:08:51]} 11. Be3 {[%emt 0:04:53]} Rd8 {[%emt 0:03:23]} 12. Qe2 {[%emt 0:04:40] [#]} b6 $146 {[%emt 0:11:43] [#] Threatens to win with ...Ba6.} ({Predecessor:} 12... Bf5 13. Rfd1 h6 14. a3 Be6 15. b4 Qh5 16. Rab1 a6 17. a4 Na7 18. b5 a5 {½-½ (44) Rosandic,A (2060)-Weng,A (2120) Litomysl 1994}) 13. Rfd1 {[%emt 0:05:34]} ({But not} 13. Qc4 Bb7 $15) (13. Nb5 $11 {is more appropriate.}) 13... Ba6 $15 {[%emt 0:00:53]} 14. Qe1 {[%emt 0:01:19]} Rd7 {[%emt 0:06:18]} 15. Bf4 {[%emt 0:21:25]} (15. a3 $11) 15... Qf5 {[%emt 0:06:15]} (15... Bxd4 $2 16. Qe4 Bb7 17. Nxd4 $18) (15... Nxd4 $142 16. Nxd4 Bxd4) 16. Be5 $17 {[%emt 0:08:57]} Bf8 {[%emt 0:14:02]} (16... Qxc2 17. Bxg7 Kxg7 18. d5 $18) (16... Nxe5 $17 17. Nxe5 Rd6) 17. d5 {[%emt 0:11:35]} Nb4 {[%emt 0:00:48]} 18. Nd4 {[%emt 0:00:28]} Nxc2 {[%emt 0:01:53]} 19. Nxc2 {[%emt 0:06:08]} Qxc2 {[%emt 0:00:03]} 20. Rd2 {[%emt 0:00:14]} (20. Qe3 $1 $11 Bg7 21. Bxg7 Kxg7 22. Qd4+ Kg8 23. Rac1) 20... Qf5 $15 {[%emt 0:00:18][%cal Oc7c6]} 21. g4 {[%emt 0:01:54]} (21. f4 $15 h5 22. Ne4) 21... Qf3 $17 {[%emt 0:01:33]} 22. Bg3 {[%emt 0:01:35]} Rad8 23. Rad1 {[%emt 0:01:04]} (23. Rd4 $17 Bg7 24. Qe4 Qxe4 25. Rxe4) 23... e6 $2 {[%emt 0:05:44]} (23... Bh6 $19 24. Rd4 c5) 24. Qe4 $1 $11 {[%emt 0:01:33]} Qxe4 {[%emt 0:07:47]} 25. Nxe4 {[%emt 0:00:01]} Be7 {[%emt 0:01:30] Against Nf6+} (25... Bg7 {with more complications.} 26. Bh4 Rf8 27. dxe6 Rxd2 28. exf7+ Rxf7 29. Rxd2 h6) 26. dxe6 {[%emt 0:01:23]} Rxd2 {[%emt 0:00:12]} 27. exf7+ {[%emt 0:00:05]} Kxf7 {[%emt 0:00:03]} 28. Rxd2 {[%emt 0:00:06]} Rxd2 {[%emt 0:01:16]} 29. Nxd2 {[%emt 0:00:01][%mdl 4096] Endgame KBB-KBN} Bd8 {[%emt 0:00:01]} 30. f3 {[%emt 0:01:51]} Ke6 {[%emt 0:00:22]} 31. Kf2 {[%emt 0:00:51]} Kd5 {[%emt 0:00:20]} 32. Ke3 {[%emt 0:00:24]} (32. Ne4 $15) 32... Bg5+ {[%emt 0:02:20]} 33. f4 {[%emt 0:00:21]} (33. Bf4 $17 Bf6 34. Bxc7) 33... Bf6 $19 {[%emt 0:00:18]} 34. b3 {[%emt 0:00:59]} Bd4+ {[%emt 0:00:23]} 35. Kf3 {[%emt 0:00:02][%cal Od2c4]} c5 {[%emt 0:01:31] Black is more active.} 36. h4 {[%emt 0:02:18]} (36. Nc4 $17) 36... Bd3 {[%emt 0:01:04]} 37. Bf2 {[%emt 0:00:52]} (37. Nc4 $142) 37... Bc3 {[%emt 0:01:05] A strong pair of Bishops.} 38. Ke3 {[%emt 0:00:20]} Bc2 {[%emt 0:00:24]} 39. g5 {[%emt 0:02:00]} (39. Ke2 $17 {might work better.}) 39... Bd4+ {[%emt 0:00:49]} 40. Ke2 {[%emt 0:00:00]} Bc3 $2 {[%emt 0:00:00]} ({Black should try} 40... Bf5 $19 {White must now prevent ...b5.} 41. Be3 b5) 41. Be3 $2 {[%emt 0:01:21]} (41. Ke3 $1 $11 {and White is okay.}) 41... b5 {[%emt 0:04:58]} 42. Nf1 {[%emt 0:03:18]} Bb1 {[%emt 0:03:03]} 43. a3 {[%emt 0:02:05]} a6 {[%emt 0:10:47] Hoping for ...c4.} 44. Bd2 {[%emt 0:01:21]} (44. Bc1 {keeps fighting.}) 44... Bb2 {[%emt 0:02:34]} 45. Ne3+ {[%emt 0:01:05]} Kd4 {[%emt 0:02:09]} 46. Nd1 {[%emt 0:01:04]} Bd3+ {[%emt 0:00:57]} 47. Kf3 {[%emt 0:00:12]} Bxa3 {[%emt 0:01:28]} 48. Bc3+ {[%emt 0:01:15]} Kd5 {[%emt 0:01:14] This move loses the game for White.} 49. Ne3+ {[%emt 0:00:15] Black is clearly winning.} Ke6 {[%emt 0:00:26]} 50. Ng4 {[%emt 0:00:57]} (50. Bg7 $142) 50... Bc2 {[%emt 0:01:05]} 51. Nf6 {[%emt 0:00:34]} b4 {[%emt 0:00:16]} 52. Be5 {[%emt 0:00:25]} Bxb3 {[%emt 0:00:07]} 53. Nxh7 {[%emt 0:00:12]} c4 {[%emt 0:00:47] aiming for ...c3.} 54. h5 {[%emt 0:00:23]} Bd1+ {[%emt 0:00:28] Weighted Error Value: White=0.55/Black=0.22 (precise)} (54... c3 $142 55. Bd4 Bd5+ 56. Kg3 c2) 0-1

[Event "Polish Youth Ekstraliga 2022"]
[Site "Lublin"]
[Date "2022.07.02"]
[Round "8.8"]
[White "Redzisz, Michal"]
[Black "Grzadka, Artur"]
[Result "1-0"]
[ECO "A04"]
[WhiteElo "2236"]
[BlackElo "1718"]
[Annotator "TA"]
[PlyCount "95"]
[EventDate "2022.06.24"]
[EventType "team-tourn"]
[EventCountry "POL"]
[SourceTitle "playchess.com"]
[Source "ChessBase"]
[SourceQuality "1"]
[TimeControl "40/5400+30:1800+30"]

{[%evp 9,95,29,47,0,0,0,0,-6,-5,-7,0,0,18,0,0,0,0,7,15,0,0,-14,0,-20,5,0,0,0,0,0,0,0,0,-13,0,0,0,0,0,0,0,-6,0,-6,3,1,18,8,12,12,73,83,92,88,100,135,147,146,248,233,261,245,237,211,313,279,284,315,299,307,308,0,272,251,316,305,1041,992,1402,1319,1516,1295,2737,2570,2179,2061,1769,1489]} 1. Nf3 {[%emt 0:01:35]} d6 {[%emt 0:02:07]} 2. d4 {[%emt 0:00:07]} g6 {[%emt 0:00:18]} 3. b3 {[%emt 0:03:44]} Bg7 {[%emt 0:00:19]} 4. Bb2 {[%emt 0:00:05]} Nd7 {[%emt 0:00:47]} 5. e3 {[%emt 0:02:44]} e5 {[%emt 0:05:07]} 6. Nbd2 {[%emt 0:00:34] A41: 1 d4 d6: Tartakower System and Modern Defence.} ({White should try} 6. dxe5 $14 Ne7 7. Bc3 dxe5 8. Nbd2) 6... Qe7 $11 {[%emt 0:01:24]} 7. dxe5 {[%emt 0:02:10]} Nxe5 {[%emt 0:01:48]} 8. Qc1 {[%emt 0:00:03] [#] The position is equal.} Nxf3+ $146 {[%emt 0:08:19]} ({Predecessor:} 8... Be6 9. Be2 h5 10. h4 Nh6 11. Ng5 Bg4 12. f4 Bxe2 13. Kxe2 Neg4 14. Nf1 f6 15. Nf3 O-O-O 16. c4 Nf5 17. Nd4 Qe4 18. Nf3 Rhe8 19. Qb1 Qxf4 {0-1 (19) Kirkwood,R (1677)-Garcia Blazquez,P (1851) Caleta 2017}) 9. Nxf3 {[%emt 0:00:03]} Bxb2 {[%emt 0:00:08]} 10. Qxb2 {[%emt 0:00:02]} Qf6 {[%emt 0:00:06]} 11. O-O-O {[%emt 0:00:06]} Bg4 {[%emt 0:08:24]} 12. Be2 {[%emt 0:01:28]} Qxb2+ {[%emt 0:00:39]} 13. Kxb2 {[%emt 0:00:02]} O-O-O {[%emt 0:01:09]} 14. h3 {[%emt 0:00:28]} Bd7 {[%emt 0:01:51]} 15. Nd2 {[%emt 0:06:13]} Bc6 {[%emt 0:01:19]} 16. Bf3 {[%emt 0:00:59]} Ne7 {[%emt 0:00:27]} 17. a4 {[%emt 0:01:22]} a5 {[%emt 0:02:11]} 18. Bxc6 {[%emt 0:04:34]} Nxc6 {[%emt 0:00:26]} 19. Nf3 {[%emt 0:00:04]} b6 {[%emt 0:03:57]} 20. Nd4 {[%emt 0:00:29]} Kb7 {[%emt 0:00:43]} 21. Kc3 {[%emt 0:02:08]} Rhe8 {[%emt 0:02:24]} 22. Nxc6 {[%emt 0:01:26]} Kxc6 {[%emt 0:00:05][%mdl 4096] Endgame KRR-KRR} 23. Rd4 {[%emt 0:00:01]} Re5 {[%emt 0:03:23]} 24. Rhd1 {[%emt 0:02:18]} Rde8 {[%emt 0:01:34]} 25. Rf4 {[%emt 0:03:53]} Rc5+ {[%emt 0:04:58]} 26. Kb2 {[%emt 0:01:31]} Re7 {[%emt 0:05:43]} 27. Rf6 {[%emt 0:00:25]} Rd5 {[%emt 0:00:35]} 28. Rd3 {[%emt 0:03:13]} Rxd3 {[%emt 0:08:07]} 29. cxd3 {[%emt 0:00:31] KR-KR} Kd5 {[%emt 0:10:23] [#]} (29... Kd7 $1 $11) 30. g4 $1 $16 {[%emt 0:00:34]} Kc6 {[%emt 0:02:15]} 31. Kc3 {[%emt 0:18:39]} b5 {[%emt 0:03:34]} 32. Kd4 {[%emt 0:18:26]} Kb6 {[%emt 0:07:10]} 33. e4 {[%emt 0:03:43]} Kc6 {[%emt 0:00:12]} (33... Rd7 $16 34. g5 c6) 34. h4 $18 {[%emt 0:06:47][%cal Bh3h4,Bh4h5][%mdl 32]} Kb6 {[%emt 0:02:15]} 35. h5 {[%emt 0:01:11]} Kc6 {[%emt 0:00:08]} 36. f4 {[%emt 0:02:15][%cal Bf2f4,Bf4f5][%mdl 32]} bxa4 {[%emt 0:06:41]} (36... Kb6 $142 37. f5 Rd7 38. hxg6 (38. fxg6 fxg6 39. hxg6 hxg6 $18) 38... hxg6 39. fxg6 fxg6 40. Rxg6 Rh7) 37. bxa4 {[%emt 0:00:02]} Kd7 {[%emt 0:05:42]} 38. Kc4 {[%emt 0:05:52]} c6 {[%emt 0:02:07]} 39. Kd4 {[%emt 0:06:50]} Kc7 {[%emt 0:00:11]} 40. Kc4 $2 {[%emt 0:00:00]} (40. f5 $18) 40... Rd7 $2 {[%emt 0:00:00][%mdl 8192]} (40... Kd7 $1 $11) 41. f5 {[%emt 0:08:33]} Kb6 {[%emt 0:06:16]} 42. Kd4 {[%emt 0:03:02]} ({Don't play} 42. fxg6 fxg6 43. hxg6 hxg6 44. Rxg6 d5+ 45. exd5 Rxd5) 42... d5 $2 {[%emt 0:08:20]} (42... Kc7 43. g5 (43. fxg6 fxg6 44. hxg6 hxg6 $18) 43... Re7 44. hxg6 hxg6 45. fxg6 fxg6 46. Rxg6 Kd7) 43. e5 {[%emt 0:00:38][%cal Be4e5,Be5e6][%mdl 32] White is clearly winning.} gxh5 {[%emt 0:00:46]} 44. gxh5 {[%emt 0:00:03]} Re7 {[%emt 0:03:06]} 45. Rh6 {[%emt 0:01:26]} Rd7 {[%emt 0:00:40]} 46. Rxh7 {[%emt 0:01:42] [#] aiming for e6.} c5+ {[%emt 0:00:05]} 47. Kc3 {[%emt 0:00:14] Strongly threatening e6.} c4 {[%emt 0:02:08]} 48. e6 {[%emt 0:00:38] Weighted Error Value: White=0.14 (very precise) /Black=0.31} 1-0